fUST/lending_fUST_20260122
["ID","MTS","AMOUNT","RATE_DAILY","PERIOD"]
[403020624,1769073032432,-500.0,0.00018158,2]
[403020626,1769073032441,-500.0,0.00018158,2]
[403020628,1769073032450,-500.0,0.00018158,2]
[403020630,1769073032459,-500.0,0.00018158,2]
[403020632,1769073032468,-199.27301408,0.00018158,2]
[403020634,1769073032477,-500.0,0.00018158,2]
[403020636,1769073032486,-500.0,0.00018158,2]
[403020638,1769073032495,-500.0,0.00018158,2]
[403020640,1769073032503,-500.0,0.00018158,2]
[403020642,1769073032512,-500.0,0.00018158,2]
[403020644,1769073032521,-500.0,0.00018158,2]
[403020645,1769073032530,-500.0,0.00018158,2]
[403020646,1769073032539,-4544.0866215,0.00018164,2]
[403020647,1769073032548,-177.0,0.00018351,2]
[403020648,1769073032557,-1905.63,0.00018491,2]
[403020649,1769073032566,-273.1,0.000185,2]
[403020650,1769073032575,-223.44,0.000185,2]
[403020651,1769073032584,-524.38,0.000185,2]
[403020652,1769073032592,-500.0,0.00018996,2]
[403020653,1769073032601,-1247.47,0.00018996,2]
[403020654,1769073032610,-1247.47,0.00018996,2]
[403020655,1769073032619,-1247.47,0.00018997,2]
[403020656,1769073032628,-1247.47,0.00018997,2]
[403020657,1769073032638,-1247.47,0.00018998,2]
[403020658,1769073032647,-995.33,0.00019106,2]
[403020659,1769073032655,-475.0,0.00019169,2]
[403020660,1769073032664,-475.0,0.00019169,2]
[403020661,1769073032673,-475.0,0.00019169,2]
[403020662,1769073032682,-475.0,0.00019169,2]
[403020663,1769073032691,-475.0,0.00019169,2]
[403020664,1769073032700,-475.0,0.00019169,2]
[403020665,1769073032710,-2223.23,0.00019202,2]
[403020666,1769073032719,-180.72256121,0.00019304,2]
[403020667,1769073032728,-361.0,0.00019445,2]
[403020668,1769073032737,-1322.44958181,0.00019699,2]
[403020669,1769073032746,-339.65547154,0.00019734,2]
[403020670,1769073032755,-224.0,0.00019751,2]
[403020671,1769073032764,-2000.0,0.00019777,2]
[403020672,1769073032773,-2000.0,0.00019777,2]
[403020673,1769073032782,-734.42,0.00019789,3]
[403020674,1769073032791,-200.0,0.00019798,2]
[403020675,1769073032801,-160.0,0.00019798,2]
[403020676,1769073032811,-306.48637729,0.00019798,2]
[403020677,1769073032820,-38035.13725805,0.00019799,2]
[403020713,1769073040262,-500.0,0.00018158,2]
[403020714,1769073040273,-248.18510243,0.00018158,2]
[403020726,1769073040975,-3e-08,0.00018158,2]
[403020740,1769073043198,-251.81489754,0.00018158,2]
[403020741,1769073043207,-111.91774605,0.00018158,2]
[403020748,1769073046093,-388.08225395,0.00018158,2]
[403020749,1769073046103,-491.86920825,0.00018158,2]
[403020751,1769073180099,-217.98,0.00014884,2]
[403020752,1769073180125,-121.71581076,0.0001532,2]
[403020753,1769073180164,-28.28418924,0.0001532,2]
[403020754,1769073209159,-339.69581076,0.00015592,2]
[403020756,1769073252154,300.0,0.00013673,2]
[403020758,1769073272125,-215.16,0.00014949,2]
[403020759,1769073272147,-378.79040727,0.00015661,2]
[403020760,1769073301462,-203.25358843,0.00014939,2]
[403020761,1769073306011,-8.52641157,0.00014939,2]
[403020762,1769073306038,-157.60662868,0.00015651,2]
[403020763,1769073309817,-189.77695975,0.00015651,2]
[403020764,1769073366358,500.0,0.00013273,2]
[403020765,1769073370610,305.67355886,0.00013273,2]
[403020766,1769073371604,-260.12,0.00013821,2]
[403020767,1769073371904,501.08710733,0.00013273,2]
[403020768,1769073373813,500.9366246,0.00013273,2]
[403020769,1769073373840,501.72480489,0.00013273,2]
[403020770,1769073374709,-277.00420017,0.00013821,2]
[403020771,1769073374786,502.04598716,0.00013273,2]
[403020772,1769073391640,-46.58982324,0.00013821,2]
[403020773,1769073391663,-167.81497659,0.0001519,2]
[403020779,1769073435880,299.78878215,0.00013273,2]
[403020785,1769073437573,-43.96502341,0.0001519,2]
[403020786,1769073437597,-197.47750765,0.00015914,2]
[403020792,1769073493242,156.82398169,0.00013273,2]
[403020793,1769073493503,303.26558031,0.00013673,2]
[403020794,1769073493954,500.64445994,0.00013273,2]
[403020795,1769073494127,500.0,0.00013273,2]
[403020797,1769073560947,500.90757332,0.00013699,2]
[403020798,1769073562288,502.49042086,0.00013273,2]
[403020799,1769073617787,509.85636903,0.00013273,2]
[403020801,1769073775191,-222.25,0.00014963,2]
[403020802,1769073775214,-64.44064925,0.00015319,2]
[403020805,1769073835813,-223.07,0.00014948,2]
[403020806,1769073835841,-30.03,0.00015319,2]
[403020821,1769073903269,-223.46,0.00014947,2]
[403020822,1769073903300,-55.52935075,0.00015319,2]
[403020823,1769073903334,-446.91,0.00015659,2]
[403020824,1769073903363,-657.0,0.00016275,2]
[403020825,1769073903390,-172.4593827,0.00017301,2]
[403020826,1769073903419,-1041.66666667,0.00017308,2]
[403020827,1769073903447,-177.0,0.00017319,2]
[403020828,1769073903475,-2000.0,0.00017852,2]
[403020829,1769073903503,-151.95919976,0.00018154,2]
[403020831,1769073906227,-503.92943855,0.00013273,2]
[403020832,1769073906261,-670.37,0.0001637,2]
[403020833,1769073906295,-893.83,0.00017082,2]
[403020834,1769073906327,-1117.28,0.00017794,2]
[403020835,1769073906357,-148.04080024,0.00018154,2]
[403020836,1769073908136,513.0,0.00018154,2]
[403020837,1769073909069,2820.10952242,0.00018155,2]
[403020841,1769073915768,-8027.70701903,0.00018155,2]
[403020860,1769073963202,217.44804442,0.00013273,2]
[403020861,1769073964293,500.0,0.00013273,2]
[403020862,1769073964370,501.57185881,0.00013273,2]
[403020863,1769073964749,500.0,0.00013273,2]
[403020864,1769073965487,-203.92,0.00013821,2]
[403020866,1769073967614,-202.52520017,0.00013821,2]
[403020876,1769073986028,-101.98315417,0.00013821,2]
[403020877,1769073986052,-153.96684583,0.00014959,2]
[403020889,1769074024150,501.75166472,0.00013273,2]
[403020890,1769074024178,283.87564453,0.00013273,2]
[403020891,1769074024206,264.67587913,0.00013273,2]
[403020892,1769074024355,501.52283773,0.00013273,2]
[403020893,1769074024496,501.50463274,0.00013273,2]
[403020894,1769074043821,507.98534086,0.00013273,2]
[403020895,1769074086889,5719.67409706,0.000125,2]
[403020896,1769074086911,2422.91123725,0.000125,2]
[403020897,1769074147494,500.0,0.00013273,2]
[403020898,1769074147843,501.73068259,0.00013273,2]
[403020899,1769074150976,-314.27026519,0.00013821,2]
[403020900,1769074182363,-189.77014382,0.00013821,2]
[403020925,1769074232183,-255.95,0.000149,2]
[403020927,1769074232195,-634.0,0.000149,2]
[403020928,1769074232204,-150.0,0.00014932,2]
[403020930,1769074232214,-13004.5818941,0.00014957,2]
[403020932,1769074232223,-241.82,0.00014966,2]
[403020934,1769074232232,-413.83,0.000155,2]
[403020936,1769074232242,-483.64,0.00015678,2]
[403020938,1769074232251,-186.92089479,0.00016325,2]
[403020941,1769074232261,-325.10039063,0.00016325,2]
[403020944,1769074232271,-214.5404641,0.00016325,2]
[403020947,1769074232280,-15806.92831689,0.00016326,2]
[403020949,1769074232291,-398.0,0.00016326,2]
[403020951,1769074232302,-3322.75,0.00016326,2]
[403020986,1769074238307,-500.0,0.00016324,2]
[403020988,1769074238317,-500.0,0.00016324,2]
[403020990,1769074238326,-500.0,0.00016324,2]
[403020992,1769074238336,-500.0,0.00016324,2]
[403020994,1769074238346,-593.05153603,0.00016324,2]
[403020996,1769074238355,-500.0,0.00016324,2]
[403020998,1769074238364,-500.0,0.00016324,2]
[403021000,1769074238374,-500.0,0.00016324,2]
[403021002,1769074238384,-566.832077,0.00016324,2]
[403021004,1769074238393,-500.0,0.00016324,2]
[403021006,1769074238403,-500.0,0.00016324,2]
[403021008,1769074238414,-500.0,0.00016324,2]
[403021010,1769074238423,-500.0,0.00016324,2]
[403021012,1769074238433,-571.45530706,0.00016324,2]
[403021014,1769074238442,-114.61952912,0.00016324,2]
[403021260,1769074240699,-3e-08,0.00016324,2]
[403021554,1769074243519,-385.38047085,0.00016324,2]
[403021556,1769074243528,-12337.42022927,0.00016326,2]
[403021653,1769074279447,500.0,0.00013273,2]
[403021654,1769074345398,500.0,0.00015397,120]
[403021655,1769074367435,-239.55,0.00015002,2]
[403021656,1769074367465,-479.1,0.00015716,2]
[403021657,1769074367494,-500.0,0.00016324,2]
[403021658,1769074367919,-3688.21783957,0.00016326,2]
[403021659,1769074368001,-10000.01,0.00016326,2]
[403021660,1769074368208,-10000.01,0.00016326,2]
[403021661,1769074368371,-10000.01,0.00016326,2]
[403021662,1769074370220,-10000.01,0.00016326,2]
[403021663,1769074373444,-10000.01,0.00016326,2]
[403021664,1769074373597,-10000.01,0.00016326,2]
[403021665,1769074373731,-10000.01,0.00016326,2]
[403021666,1769074373884,-10000.01,0.00016326,2]
[403021667,1769074393112,171.90766048,0.00013273,2]
[403021668,1769074397525,500.0,0.000155,120]
[403021669,1769074398508,201.81951638,0.00013273,2]
[403021670,1769074400199,500.0,0.00013273,2]
[403021671,1769074400251,506.76868078,0.00013821,2]
[403021674,1769074423616,-307.01028251,0.00016226,2]
[403021675,1769074423644,-300.0,0.00016325,2]
[403021676,1769074423676,-150.0,0.00016326,2]
[403021677,1769074423809,-7105.49357734,0.00016326,2]
[403021678,1769074423890,-10000.01,0.00016326,2]
[403021679,1769074424071,-10000.01,0.00016326,2]
[403021680,1769074430734,-500.0,0.000155,2]
[403021681,1769074430777,-9000.01,0.00016326,2]
[403021682,1769074434156,-1006.0,0.00013821,2]
[403021683,1769074451966,-420.63,0.00015021,2]
[403021684,1769074451996,-841.26,0.00015736,2]
[403021685,1769074452047,-7476.23,0.00016326,2]
[403021686,1769074452216,-1921.88237416,0.00016326,2]
[403021687,1769074457441,458.1068368,0.00013273,2]
[403021688,1769074486043,-500.0,0.00016397,2]
[403021689,1769074486072,-1261.88,0.00016451,2]
[403021690,1769074486099,-300.0,0.00016649,2]
[403021691,1769074486126,-180.83176848,0.0001665,2]
[403021692,1769074486153,-1682.51,0.00017166,2]
[403021693,1769074486179,-434.50504773,0.00017515,2]
[403021694,1769074486221,-2103.14,0.00017882,2]
[403021695,1769074486248,-1041.66666667,0.00018139,2]
[403021696,1769074486276,-1480.08136066,0.00018177,2]
[403021697,1769074486392,-750.23394534,0.00018177,2]
[403021698,1769074486418,-152.79950989,0.00018177,2]
[403021699,1769074486443,-1957.856,0.00018177,2]
[403021700,1769074486470,-2030.296672,0.00018232,2]
[403021701,1769074486659,-946.65971675,0.00018287,2]
[403021702,1769074486690,-177.0,0.00018326,2]
[403021703,1769074486720,-2523.77,0.00018597,2]
[403021704,1769074486747,-1349.23778093,0.00018725,2]
[403021705,1769074488053,6.67500464,0.00018137,2]
[403021706,1769074488075,1034.99166203,0.00018137,2]
[403021707,1769074498785,502.73719702,0.00017397,2]
[403021708,1769074503131,172.714999,0.00014611,2]
[403021709,1769074509375,5092.85770469,0.00012878,2]
[403021710,1769074510679,461.67526834,0.00018714,2]
[403021711,1769074511569,168.3888056,0.00018714,2]
[403021712,1769074513611,168.3888056,0.00018714,2]
[403021713,1769074514250,156.37263241,0.00018714,2]
[403021714,1769074518729,151.0,0.00018714,2]
[403021715,1769074519548,151.0,0.00018714,2]
[403021716,1769074519777,151.0,0.00018714,2]
[403021717,1769074520006,151.0,0.00018714,2]
[403021718,1769074520673,151.0,0.00018714,2]
[403021719,1769074521026,500.0,0.00013273,2]
[403021720,1769074521312,151.0,0.00018714,2]
[403021721,1769074521494,500.0,0.00013273,2]
[403021722,1769074521562,500.0,0.00013699,2]
[403021723,1769074521926,151.0,0.00018714,2]
[403021724,1769074522524,151.0,0.00018714,2]
[403021725,1769074523024,504.04245412,0.00013273,2]
[403021726,1769074523139,238.51246012,0.00018714,2]
[403021727,1769074524728,312.32,0.00015003,2]
[403021728,1769074525493,624.65,0.00015717,2]
[403021729,1769074525914,936.97,0.00016432,2]
[403021730,1769074526667,500.0,0.00016324,2]
[403021731,1769074526694,500.0,0.00016324,2]
[403021732,1769074526720,265.40551169,0.00016324,2]
[403021733,1769074526901,500.0,0.00016325,2]
[403021734,1769074526976,500.0,0.00016324,2]
[403021735,1769074527016,500.0,0.00016324,2]
[403021736,1769074527147,500.0,0.00016324,2]
[403021737,1769074527204,500.0,0.00016325,2]
[403021738,1769074527231,500.0,0.00016324,2]
[403021739,1769074527312,500.0,0.00016324,2]
[403021740,1769074527341,300.0,0.00016324,2]
[403021741,1769074527497,500.0,0.00016324,2]
[403021742,1769074529279,1249.3,0.00017146,2]
[403021743,1769074530719,266.80957407,0.00017861,2]
[403021744,1769074530744,1294.81042593,0.00017861,2]
[403021745,1769074531143,1873.95,0.00018575,2]
[403021746,1769074532910,500.0,0.00016325,2]
[403021747,1769074533130,500.0,0.00016324,2]
[403021748,1769074533161,250.0,0.00016324,2]
[403021749,1769074533188,500.0,0.00016324,2]
[403021750,1769074533232,500.0,0.00016325,2]
[403021751,1769074533425,300.0,0.00016324,2]
[403021752,1769074533474,500.0,0.00016324,2]
[403021753,1769074537058,6950.01,0.00018447,2]
[403021754,1769074537079,8123.9664111,0.00018447,2]
[403021755,1769074544095,500.0,0.00016325,2]
[403021756,1769074544123,500.0,0.00016325,2]
[403021757,1769074544150,500.0,0.00016324,2]
[403021758,1769074544176,376.0435889,0.00016325,2]
[403021759,1769074544197,123.9564111,0.00016325,2]
[403021760,1769074544225,500.0,0.00016325,2]
[403021761,1769074544541,3462.74852714,0.00017821,2]
[403021762,1769074546063,500.0,0.00016325,2]
[403021763,1769074546093,500.0,0.00016325,2]
[403021764,1769074546121,500.0,0.00016325,2]
[403021765,1769074546148,314.70637469,0.00016325,2]
[403021766,1769074546176,500.0,0.00016325,2]
[403021767,1769074546203,500.0,0.00016325,2]
[403021768,1769074546228,500.0,0.00016325,2]
[403021769,1769074546254,203.91429825,0.00016325,2]
[403021770,1769074546282,500.0,0.00016325,2]
[403021771,1769074546310,500.0,0.00016325,2]
[403021772,1769074546337,500.0,0.00016325,2]
[403021773,1769074546364,500.0,0.00016325,2]
[403021774,1769074546396,394.68438882,0.00016325,2]
[403021775,1769074546418,105.31561118,0.00016325,2]
[403021776,1769074546447,500.0,0.00016325,2]
[403021777,1769074546478,500.0,0.00016325,2]
[403021778,1769074546505,475.0,0.00017568,2]
[403021779,1769074546532,500.0,0.00016325,2]
[403021780,1769074546560,500.0,0.00016325,2]
[403021781,1769074546588,500.0,0.00016325,2]
[403021782,1769074546614,500.0,0.00016325,2]
[403021783,1769074546641,500.0,0.00016325,2]
[403021784,1769074546667,500.0,0.00016325,2]
[403021785,1769074546695,500.0,0.00016325,2]
[403021786,1769074546721,500.0,0.00016325,2]
[403021787,1769074546749,500.0,0.00016325,2]
[403021788,1769074546779,500.0,0.00016325,2]
[403021789,1769074546806,500.0,0.00016325,2]
[403021790,1769074546833,500.0,0.00016325,2]
[403021791,1769074546866,500.0,0.00016325,2]
[403021792,1769074546893,500.0,0.00016325,2]
[403021793,1769074546922,500.0,0.00016325,2]
[403021794,1769074546955,500.0,0.00016325,2]
[403021795,1769074546983,419.69438882,0.00016325,2]
[403021796,1769074547008,80.30561118,0.00016325,2]
[403021797,1769074547038,500.0,0.00016324,2]
[403021798,1769074547067,500.0,0.00016325,2]
[403021799,1769074547095,500.0,0.00016325,2]
[403021800,1769074547122,500.0,0.00016325,2]
[403021801,1769074547153,477.90356822,0.00016325,2]
[403021802,1769074547180,500.0,0.00016325,2]
[403021803,1769074547207,500.0,0.00016325,2]
[403021804,1769074547240,500.0,0.00016325,2]
[403021805,1769074630310,-504.70219853,0.00012212,2]
[403021806,1769074630331,-5.18746688,0.00013273,2]
[403021807,1769074633195,-152.44732311,0.00013273,2]
[403021808,1769074635385,-240.42094626,0.00013273,2]
[403021809,1769074690174,-107.45035472,0.00013273,2]
[403021810,1769074690195,-117.53964528,0.00013273,2]
[403021811,1769074695054,-243.13,0.00013273,2]
[403021812,1769074696707,-139.72280263,0.00013273,2]
[403021813,1769074696732,-252.65719737,0.00013273,2]
[403021814,1769074708403,-248.73724879,0.00013273,2]
[403021815,1769074708424,-124.41606024,0.00013273,2]
[403021816,1769074711949,-376.63293681,0.00013273,2]
[403021817,1769074711971,-40.27375419,0.00013273,2]
[403021818,1769074719955,-269.52845484,0.00013273,2]
[403021819,1769074721958,-156.2968219,0.00013273,2]
[403021820,1769074726856,-12.79058107,0.00013273,2]
[403021821,1769074726878,-190.29414219,0.00013273,2]
[403021822,1769074728647,-233.35922906,0.00013273,2]
[403021823,1769074779044,-76.71249472,0.00013273,2]
[403021824,1769074779070,-150.0,0.00013486,2]
[403021825,1769074779094,-102.51035074,0.00013699,2]
[403021826,1769074782098,-300.0,0.00013699,2]
[403021827,1769074786373,-99.15020845,0.00013699,2]
[403021828,1769074786395,-112.55979158,0.00013699,2]
[403021829,1769074790457,-165.92999997,0.00013699,2]
[403021830,1769074793141,-167.35,0.00013699,2]
[403021831,1769074809962,-55.10968572,0.00013699,2]
[403021832,1769074809984,-189.88031428,0.00013699,2]
[403021833,1769074813101,-168.85,0.00013699,2]
[403021834,1769074814817,-160.8,0.00013699,2]
[403021835,1769074859054,168.0,4.2e-07,2]
[403021836,1769074929899,-300.0,0.00013273,2]
[403021837,1769074933852,-160.02,0.00013273,2]
[403021838,1769075037746,-39.98,0.00013273,2]
[403021839,1769075037769,-120.04410809,0.00013486,2]
[403021840,1769075171107,-29.95589191,0.00013486,2]
[403021841,1769075171130,-95.46968572,0.00013699,2]
[403021842,1769075171150,-77.17453202,0.00013967,2]
[403021843,1769075303172,160.0,0.000134,2]
[403021844,1769075385463,-597.69671998,0.00013967,2]
[403021845,1769075385491,-150.0,0.00014133,2]
[403021846,1769075385518,-300.0,0.00014298,2]
[403021847,1769075385545,-300.0,0.00014298,2]
[403021848,1769075385571,-300.0,0.00014299,2]
[403021849,1769075385598,-300.0,0.00014299,2]
[403021850,1769075385624,-300.0,0.00014299,2]
[403021851,1769075385652,-1007.0,0.00014299,2]
[403021852,1769075385680,-500.0,0.00014299,2]
[403021853,1769075385708,-500.0,0.00014299,2]
[403021854,1769075385735,-500.0,0.00014299,2]
[403021855,1769075386291,-500.0,0.00014299,2]
[403021856,1769075386319,-500.0,0.00014299,2]
[403021857,1769075386347,-500.0,0.00014299,2]
[403021858,1769075386376,-500.0,0.00014299,2]
[403021859,1769075386406,-500.0,0.00014299,2]
[403021860,1769075386433,-500.0,0.00014299,2]
[403021861,1769075386462,-500.0,0.00014299,2]
[403021862,1769075386490,-429.47356452,0.00014299,2]
[403021863,1769075386517,-500.0,0.00014299,2]
[403021864,1769075386545,-500.0,0.00014299,2]
[403021865,1769075387111,-429.0354773,0.00014299,2]
[403021866,1769075387140,-500.0,0.00014299,2]
[403021867,1769075387168,-500.0,0.00014299,2]
[403021868,1769075387195,-500.0,0.00014299,2]
[403021869,1769075387223,-571.70491021,0.00014299,2]
[403021870,1769075387249,-500.0,0.00014299,2]
[403021871,1769075387276,-500.0,0.00014299,2]
[403021872,1769075387303,-500.0,0.00014299,2]
[403021873,1769075387329,-168.3697916,0.00014299,2]
[403021874,1769075387355,-500.0,0.00014299,2]
[403021875,1769075387383,-161.78964178,0.00014299,2]
[403021876,1769075387414,-338.21035822,0.00014299,2]
[403021877,1769075387440,-500.0,0.00014299,2]
[403021878,1769075387468,-500.0,0.00014299,2]
[403021879,1769075387494,-500.0,0.00014299,2]
[403021880,1769075387522,-511.94109661,0.00014299,2]
[403021881,1769075387550,-377.97791566,0.00014299,2]
[403021882,1769075387580,-500.0,0.00014299,2]
[403021883,1769075387611,-500.0,0.00014299,2]
[403021884,1769075387638,-1000.0,0.000143,2]
[403021885,1769075387677,-1000.0,0.000143,2]
[403021886,1769075387704,-1000.0,0.000143,2]
[403021887,1769075387732,-1000.0,0.000143,2]
[403021888,1769075392215,-7855.66692102,0.000143,2]
[403021889,1769075400710,-10000.01,0.000143,2]
[403021890,1769075400842,-10000.01,0.000143,2]
[403021891,1769075400945,-10000.01,0.000143,2]
[403021892,1769075401039,-10000.01,0.000143,2]
[403021893,1769075401197,-2144.29307898,0.000143,2]
[403021894,1769075401225,-160.0,0.000143,2]
[403021895,1769075401256,-350.56,0.00015014,2]
[403021896,1769075401286,-160.0,0.000151,2]
[403021897,1769075401313,-160.0,0.000151,2]
[403021898,1769075401343,-701.13,0.00015729,2]
[403021899,1769075428680,-171.75936964,0.00014299,2]
[403021900,1769075432277,-177.0,0.00016133,2]
[403021901,1769075432288,-394.71208879,0.00016133,2]
[403021902,1769075432299,-259.28791121,0.00016133,2]
[403021903,1769075432309,-160.0,0.000162,2]
[403021904,1769075432318,-160.0,0.000162,2]
[403021905,1769075432328,-500.0,0.00016397,2]
[403021906,1769075432337,-160.0,0.000164,2]
[403021907,1769075432346,-160.0,0.000164,2]
[403021908,1769075432355,-1051.69,0.00016443,2]
[403021909,1769075432364,-160.0,0.000165,2]
[403021910,1769075432378,-160.0,0.000165,2]
[403021912,1769075432387,-694.63710683,0.00017023,2]
[403021913,1769075432396,-965.42391445,0.00017023,2]
[403021915,1769075432405,-1402.25,0.00017158,2]
[403021918,1769075432415,-1041.66666667,0.00017303,2]
[403021920,1769075432425,-500.0,0.00017579,2]
[403021922,1769075432434,-500.0,0.00017716,2]
[403021924,1769075432443,-153.8853658,0.00017819,2]
[403021925,1769075432452,-156.70093233,0.00017853,2]
[403021926,1769075432461,-189.86087122,0.00017853,2]
[403021927,1769075432471,-428.73026367,0.00017853,2]
[403021928,1769075432480,-500.0,0.00017853,2]
[403021929,1769075432489,-10401.5576697,0.00017865,2]
[403021930,1769075432498,-349.77236346,0.00017871,2]
[403021931,1769075432507,-1752.81,0.00017873,2]
[403021932,1769075432517,-1819.12896012,0.00017919,2]
[403021933,1769075432527,-500.0,0.0001799,2]
[403021934,1769075432536,-500.0,0.00018127,2]
[403021935,1769075432545,-204.0,0.00018133,2]
[403021936,1769075432556,-1645.12688355,0.00018211,2]
[403021937,1769075432567,-2570.51075554,0.00018211,2]
[403021938,1769075432577,-500.0,0.00018264,2]
[403021939,1769075432586,-507.53367083,0.00018401,2]
[403021940,1769075432596,-2103.38,0.00018588,2]
[403021941,1769075432606,-925.383872,0.00018605,2]
[403021942,1769075432615,-514.10215111,0.00018605,2]
[403021943,1769075432624,-500.0,0.00018895,2]
[403021944,1769075432633,-246.880399,0.00018895,2]
[403021945,1769075432642,-193.882904,0.00018925,2]
[403021946,1769075432652,-500.0,0.00018925,2]
[403021947,1769075432661,-181.19008512,0.00019,2]
[403021948,1769075432670,-500.0,0.00019032,2]
[403021949,1769075432679,-500.0,0.00019062,2]
[403021950,1769075432689,-500.0,0.00019169,2]
[403021951,1769075432698,-500.0,0.00019199,2]
[403021952,1769075432707,-500.0,0.00019199,2]
[403021953,1769075432716,-500.0,0.00019199,2]
[403021954,1769075432726,-500.0,0.00019199,2]
[403021955,1769075432735,-500.0,0.00019199,2]
[403021956,1769075432744,-500.0,0.00019199,2]
[403021957,1769075432753,-150.0,0.00019199,2]
[403021958,1769075432762,-250.17553159,0.00019199,2]
[403021959,1769075432771,-500.0,0.00019199,2]
[403021960,1769075432781,-500.0,0.00019199,2]
[403021961,1769075432790,-154.62335951,0.00019199,2]
[403021962,1769075432799,-174.12771407,0.00019199,2]
[403021963,1769075432809,-500.0,0.00019213,2]
[403021964,1769075432819,-500.0,0.00019213,2]
[403021965,1769075432828,-500.0,0.00019213,2]
[403021966,1769075432838,-500.0,0.00019213,2]
[403021967,1769075432847,-325.17168608,0.00019279,2]
[403021968,1769075432857,-2453.94,0.00019303,2]
[403021969,1769075432866,-500.0,0.00019306,2]
[403021970,1769075432875,-500.0,0.00019336,2]
[403021971,1769075432885,-500.0,0.00019336,2]
[403021972,1769075432894,-500.0,0.00019336,2]
[403021973,1769075432903,-500.0,0.00019336,2]
[403021974,1769075432913,-500.0,0.00019336,2]
[403021975,1769075432922,-500.0,0.00019336,2]
[403021976,1769075432932,-150.0,0.00019336,2]
[403021977,1769075432941,-500.0,0.00019336,2]
[403021978,1769075432951,-500.0,0.00019336,2]
[403021979,1769075432960,-500.0,0.0001935,2]
[403021980,1769075432970,-500.0,0.0001935,2]
[403021981,1769075432979,-500.0,0.0001935,2]
[403021982,1769075432988,-500.0,0.0001935,2]
[403021983,1769075432998,-153.27960824,0.0001935,2]
[403021984,1769075433007,-157.3122286,0.00019369,2]
[403021985,1769075433018,-261.52153296,0.00019369,2]
[403021986,1769075433028,-268.64999889,0.00019473,2]
[403021987,1769075433037,-500.0,0.00019473,2]
[403021988,1769075433046,-500.0,0.00019473,2]
[403021989,1769075433056,-263.26781374,0.00019473,2]
[403021990,1769075433065,-500.0,0.00019473,2]
[403021991,1769075433074,-500.0,0.00019473,2]
[403021992,1769075433083,-259.14030444,0.00019473,2]
[403021993,1769075433093,-500.0,0.00019473,2]
[403021994,1769075433102,-500.0,0.00019473,2]
[403021995,1769075433112,-500.0,0.00019487,2]
[403021996,1769075433124,-500.0,0.00019487,2]
[403021997,1769075433133,-500.0,0.00019487,2]
[403021998,1769075433142,-500.0,0.00019487,2]
[403021999,1769075433152,-209.45,0.00019524,2]
[403022000,1769075433163,-500.86938584,0.0001961,2]
[403022001,1769075433172,-501.1341306,0.0001961,2]
[403022002,1769075433181,-500.0,0.0001961,2]
[403022003,1769075433193,-500.46163499,0.0001961,2]
[403022004,1769075433202,-223.07322793,0.0001961,2]
[403022005,1769075433213,-500.0,0.0001961,2]
[403022006,1769075433222,-501.10242036,0.00019624,2]
[403022007,1769075433231,-501.16920829,0.00019624,2]